bitfinex/quotes_SOLUSD_20240905
["timestamp","ask_amount","ask_price","bid_price","bid_amount"]
[1725569458642,29.23780967,129.19,129.15,10.46688745]
[1725569458835,29.23780967,129.19,129.16,5.74295688]
[1725569458836,52.7412,129.18,129.16,5.74295688]
[1725569459038,1.49730967,129.17,129.15,2.72408745]
[1725569459249,1.49730967,129.17,129.16,5.74167156]
[1725569459452,1.49730967,129.17,129.15,2.72408745]
[1725569459832,9.23900967,129.17,129.15,2.72408745]
[1725569460159,9.23900967,129.17,129.16,5.73834879]
[1725569460348,54.23900967,129.17,129.16,5.73834879]
[1725569460541,52.7417,129.17,129.16,5.73834879]
[1725569460936,45.0,129.17,129.16,5.73834879]
[1725569461135,1.49730967,129.17,129.16,5.73834879]
[1725569461372,9.23850967,129.18,129.16,5.73250785]
[1725569461661,9.23850967,129.18,129.15,10.46688745]
[1725569461831,9.23850967,129.18,129.16,5.73250785]
[1725569462031,9.23850967,129.18,129.15,10.46688745]
[1725569462342,9.23850967,129.18,129.16,5.73250785]
[1725569462542,9.23850967,129.18,129.15,10.46688745]
[1725569462743,9.23850967,129.18,129.16,5.73205041]
[1725569463052,1.49730967,129.17,129.14,42.3071]
[1725569463265,1.49730967,129.17,129.15,15.43361168]
[1725569463450,1.49730967,129.17,129.16,5.73283284]
[1725569465370,9.23850967,129.18,129.16,5.73283284]
[1725569465571,9.23850967,129.18,129.15,7.7428]
[1725569465763,9.23850967,129.18,129.16,5.73282244]
[1725569465963,9.23850967,129.18,129.15,7.7428]
[1725569466267,9.23850967,129.18,129.16,5.73271902]
[1725569466444,9.23850967,129.18,129.15,7.7428]
[1725569466643,9.23850967,129.18,129.16,15.4326793]
[1725569466871,9.23850967,129.18,129.17,5.73281743]
[1725569467036,29.23850967,129.18,129.17,5.73281743]
[1725569467241,29.23850967,129.18,129.15,7.7428]
[1725569467445,1.49730967,129.17,129.16,5.73346954]
[1725569468562,1.49730967,129.17,129.16,5.73345148]
[1725569471765,1.49730967,129.17,129.15,7.7428]
[1725569471965,1.49730967,129.17,129.16,5.73403562]
[1725569472569,1.49730967,129.17,129.16,15.43436035]
[1725569473445,1.49730967,129.17,129.16,18.15351002]
[1725569475048,1.49730967,129.17,129.16,5.73406908]
[1725569475248,1.49730967,129.17,129.16,18.15317213]
[1725569477371,1.49730967,129.17,129.16,18.15675419]
[1725569477971,1.49730967,129.22,129.21,7.7392]
[1725569478172,7.7376,129.24,129.2,16.6081]
[1725569478376,9.23550967,129.23,129.2,24.3478]
[1725569478552,7.7377,129.24,129.2,24.3478]
[1725569478752,1.49730967,129.23,129.2,24.3478]
[1725569479078,1.49730967,129.23,129.21,5.73681427]
[1725569479289,1.49730967,129.23,129.18,12.41851506]
[1725569479570,1.49730967,129.23,129.16,35.9626]
[1725569479571,7.74,129.2,129.16,43.7045]
[1725569479874,21.49730967,129.19,129.17,5.7406555]
[1725569480168,21.49730967,129.19,129.16,43.7045]
[1725569480472,21.49730967,129.19,129.17,5.7407202]
[1725569480670,21.49730967,129.19,129.16,43.7045]
[1725569480852,21.49730967,129.19,129.17,5.73852833]
[1725569481054,21.49730967,129.19,129.16,43.7045]
[1725569481251,21.49730967,129.19,129.17,5.73870365]
[1725569481471,21.49730967,129.19,129.16,43.7045]
[1725569481653,21.49730967,129.19,129.17,5.73853666]
[1725569481964,21.49730967,129.19,129.16,43.7045]
[1725569482167,21.49730967,129.19,129.17,5.73808825]
[1725569482481,21.49730967,129.19,129.16,43.7045]
[1725569482769,21.49730967,129.19,129.17,5.73872207]
[1725569482964,29.23780967,129.19,129.16,43.7045]
[1725569483167,1.49730967,129.18,129.17,5.74052727]
[1725569485676,1.49730967,129.18,129.16,19.3545]
[1725569485874,1.49730967,129.18,129.17,5.73978239]
[1725569489074,1.49730967,129.18,129.16,19.3545]
[1725569489258,1.49730967,129.18,129.17,5.73797408]
[1725569491855,9.23840967,129.18,129.17,5.73797408]
[1725569492055,7.7423,129.16,129.15,2.72047838]
[1725569492268,7.7435,129.14,129.11,6.1123]
[1725569492457,1.49730967,129.13,129.1,22.9382]
[1725569492663,21.49730967,129.13,129.12,2.72261299]
[1725569492972,21.49730967,129.13,129.12,18.16555062]
[1725569493168,21.49730967,129.13,129.12,5.74088885]
[1725569494260,7.7447,129.12,129.11,2.71114864]
[1725569494471,7.7459,129.1,129.09,12.41602553]
[1725569494673,65.0,129.1,129.09,5.74170859]
[1725569494960,65.0,129.1,129.06,23.3981]
[1725569495172,65.0,129.1,129.07,5.74430042]
[1725569495173,20.0,129.1,129.07,5.74430042]
[1725569495489,21.49730967,129.1,129.06,33.1043084]
[1725569495661,21.49730967,129.1,129.06,23.3981]
[1725569495860,20.0,129.1,129.07,13.49249668]
[1725569496076,21.49730967,129.11,129.07,13.49242917]
[1725569496573,21.49730967,129.11,129.07,7.7476]
[1725569496775,1.49730967,129.1,129.07,7.7476]
[1725569497175,20.0,129.11,129.07,9.29689596]
[1725569497376,21.49730967,129.11,129.07,7.7476]
[1725569497880,21.49730967,129.11,129.07,13.49076877]
[1725569498175,21.49730967,129.11,129.08,7.747]
[1725569499191,1.49730967,129.1,129.06,15.6499]
[1725569499363,46.49730967,129.1,129.07,7.7477]
[1725569499563,1.49730967,129.1,129.07,7.7477]
[1725569500259,27.7453,129.11,129.07,7.7477]
[1725569500580,20.0,129.11,129.09,7.746]
[1725569500790,20.0,129.13,129.09,7.746]
[1725569500981,27.7443,129.13,129.09,7.746]
[1725569501380,1.49730967,129.12,129.09,7.746]
[1725569501588,1.49730967,129.12,129.08,7.7469]
[1725569501767,9.24240967,129.12,129.08,7.7469]
[1725569501968,20.0,129.11,129.08,7.7469]
[1725569504389,20.0,129.11,129.09,7.7464]
[1725569504562,20.0,129.12,129.09,7.7464]
[1725569504767,21.49730967,129.12,129.09,7.7464]
[1725569506690,29.24200967,129.12,129.08,7.747]
[1725569506886,27.7447,129.12,129.08,7.747]
[1725569507293,1.49730967,129.11,129.08,7.747]
[1725569508693,9.24300967,129.11,129.07,27.1163]
[1725569508992,1.49730967,129.1,129.07,27.1163]
[1725569510288,9.24300967,129.11,129.07,27.1163]
[1725569511699,9.24300967,129.11,129.08,7.747]
[1725569512077,1.49730967,129.11,129.08,7.747]
[1725569512790,9.24270967,129.11,129.08,7.747]
[1725569513698,1.49730967,129.11,129.09,7.7464]
[1725569514074,1.49730967,129.11,129.08,7.7468]
[1725569514978,27.7448,129.12,129.08,7.7468]
[1725569515785,27.7448,129.12,129.09,7.7464]
[1725569516294,20.0,129.12,129.1,7.7459]
[1725569516501,23.96253702,129.16,129.09,27.1122]
[1725569516502,20.0,129.15,129.09,27.1122]
[1725569516682,7.7444,129.13,129.09,27.1122]
[1725569516882,20.0,129.12,129.09,27.1122]
[1725569519087,20.0,129.12,129.1,9.29497949]
[1725569519303,20.0,129.12,129.1,7.7459]
[1725569519483,20.0,129.12,129.09,27.1123]
[1725569520299,1.49730967,129.13,129.1,7.7455]
[1725569520701,21.49730967,129.13,129.1,7.7455]
[1725569523083,21.49730967,129.13,129.06,35.0198]
[1725569523279,21.49730967,129.13,129.07,7.7472]
[1725569523280,7.7456,129.11,129.07,7.7472]
[1725569523498,1.49730967,129.1,129.07,7.7472]
[1725569523710,46.49730967,129.1,129.07,7.7472]
[1725569524010,1.49730967,129.1,129.07,7.7472]
[1725569525987,9.24290967,129.11,129.07,7.7472]
[1725569526204,9.24290967,129.11,129.08,7.7469]
[1725569527209,7.7456,129.11,129.08,7.7469]
[1725569527906,9.24220967,129.12,129.08,7.7469]
[1725569528080,20.0,129.11,129.08,7.7469]
[1725569529912,1.49730967,129.13,129.09,1.54923837]
[1725569530123,7.743,129.15,129.11,7.7448]
[1725569530288,7.7425,129.16,129.12,7.7446]
[1725569530613,9.23980967,129.16,129.12,7.7446]
[1725569531410,20.0,129.15,129.12,7.7446]
[1725569531587,21.49730967,129.15,129.12,7.7446]
[1725569531783,29.24020967,129.15,129.12,7.7446]
[1725569532411,1.49730967,129.14,129.12,7.47490067]
[1725569535914,27.7429,129.15,129.12,7.47490067]
[1725569537017,1.49730967,129.18,129.11,14.74642192]
[1725569537204,21.49730967,129.2,129.14,7.7431]
[1725569538416,7.7418,129.17,129.14,7.7431]
[1725569538610,20.0,129.16,129.14,7.7431]
[1725569541997,21.49730967,129.17,129.14,7.7431]
[1725569542203,20.0,129.17,129.14,7.7431]
[1725569542407,21.49730967,129.17,129.14,7.7431]
[1725569543792,20.0,129.17,129.14,7.7431]
[1725569545093,21.49730967,129.17,129.14,7.7431]
[1725569545523,7.7424,129.16,129.13,27.1028]
[1725569545727,7.7435,129.14,129.11,13.46580774]
[1725569545931,1.49730967,129.13,129.11,5.7212844]
[1725569546224,1.49730967,129.13,129.11,7.7452]
[1725569546403,9.24080967,129.14,129.11,7.7452]
[1725569552804,9.24080967,129.14,129.1,43.4275]
[1725569553107,9.24080967,129.14,129.11,5.72131778]
[1725569553427,9.24080967,129.14,129.1,43.4275]
[1725569553728,9.24080967,129.14,129.11,5.7213121]
[1725569553899,9.24080967,129.14,129.1,43.4275]
[1725569554100,9.24080967,129.14,129.11,5.72280822]
[1725569554307,9.24080967,129.14,129.1,43.4275]
[1725569554603,9.24080967,129.14,129.11,5.72278294]
[1725569554805,9.24080967,129.14,129.1,43.4275]
[1725569555028,9.24080967,129.14,129.11,13.46875646]
[1725569555218,9.24080967,129.14,129.11,7.7452]
[1725569555726,7.7441,129.13,129.1,19.3635]
[1725569555931,1.49730967,129.12,129.1,19.3635]
[1725569556236,1.49730967,129.12,129.1,27.1094]
[1725569561141,1.49730967,129.12,129.09,6.4587]
[1725569561432,7.7449,129.12,129.09,6.4587]
[1725569561734,1.49730967,129.11,129.09,6.4587]
[1725569561927,1.49730967,129.11,129.08,7.7465]
[1725569562225,1.49730967,129.11,129.09,5.72832551]
[1725569562433,1.49730967,129.11,129.08,7.7465]
[1725569562605,1.49730967,129.11,129.09,5.7280993]
[1725569562806,7.7449,129.12,129.08,7.7465]
[1725569563107,7.7449,129.12,129.09,5.72797059]
[1725569563419,7.7441,129.13,129.09,7.746]
[1725569563623,1.49730967,129.12,129.09,7.746]
[1725569564423,9.24210967,129.12,129.09,7.746]
[1725569564626,7.7448,129.12,129.09,7.746]
[1725569568420,7.7448,129.12,129.08,27.1132]
[1725569568622,7.7448,129.12,129.09,5.73162944]
[1725569568822,7.7448,129.12,129.08,27.1132]
[1725569569014,7.7448,129.12,129.09,5.73163381]
[1725569569215,7.7448,129.12,129.08,27.1132]
[1725569569434,7.7448,129.12,129.09,5.73170981]
[1725569569718,7.7448,129.12,129.08,27.1132]
[1725569569926,7.7448,129.12,129.09,5.73249353]
[1725569570138,7.7448,129.12,129.08,27.1132]
[1725569570341,7.7448,129.12,129.09,5.73191147]
[1725569570641,7.7448,129.12,129.08,27.1132]
[1725569570861,7.7448,129.12,129.09,5.73231517]
[1725569571137,7.7448,129.12,129.08,27.1132]
[1725569571341,7.7448,129.12,129.09,5.73246465]
[1725569571544,7.7448,129.12,129.08,27.1132]
[1725569573650,7.7455,129.11,129.08,19.3663]
[1725569573850,46.49730967,129.1,129.07,15.4936]
[1725569574146,1.49730967,129.09,129.07,15.4936]
[1725569575149,21.49730967,129.09,129.05,5.10284245]
[1725569575352,21.49730967,129.09,129.06,9.70666235]
[1725569575653,29.24420967,129.09,129.05,7.7489]
[1725569575831,29.24420967,129.09,129.06,9.70673033]
[1725569576029,29.24420967,129.09,129.05,7.7489]
[1725569576536,29.24420967,129.09,129.06,9.70668353]
[1725569576730,29.24420967,129.09,129.05,7.7489]
[1725569577052,29.24420967,129.09,129.06,9.70668353]
[1725569577239,29.24420967,129.09,129.05,7.7489]
[1725569577837,20.0,129.09,129.06,7.7482]
[1725569583142,27.7465,129.09,129.06,7.7482]
[1725569583842,7.7465,129.09,129.06,7.7482]
[1725569587563,9.24440967,129.08,129.05,27.1209]
[1725569587738,1.49730967,129.11,129.04,7.7494]
[1725569588060,7.7472,129.08,129.04,17.45713749]
[1725569588458,7.7472,129.08,129.04,7.7494]
[1725569589042,7.7467,129.09,129.05,9.29827251]
[1725569589555,7.7467,129.09,129.06,7.7483]
[1725569592065,7.7467,129.09,129.05,7.7487]
[1725569592570,9.24440967,129.08,129.04,36.8293746]
[1725569592740,7.7487,129.06,129.03,15.7783]
[1725569592944,7.7479,129.07,129.03,17.45817719]
[1725569593143,1.49730967,129.09,129.02,6.4495]
[1725569593463,7.7479,129.07,129.03,7.7501]
[1725569593668,1.49730967,129.06,129.03,7.7501]
[1725569594036,7.7472,129.08,129.04,7.7493]
[1725569594236,20.0,129.11,129.04,7.7493]
[1725569594237,27.7458,129.11,129.06,7.7481]
[1725569594463,27.7458,129.11,129.07,1.54933015]
[1725569595166,20.0,129.11,129.07,20.91833015]
[1725569595372,24.69889324,129.14,129.08,1.5492333]
[1725569595660,21.49730967,129.14,129.08,1.5492333]
[1725569596743,1.49730967,129.14,129.08,1.5492333]
[1725569597865,7.7445,129.13,129.09,7.7461]
[1725569598045,20.0,129.12,129.09,7.7461]
[1725569598763,29.24210967,129.12,129.08,7.7469]
[1725569599343,7.7453,129.11,129.07,27.1165]
[1725569599869,9.24260967,129.11,129.07,27.1165]
[1725569600072,9.24260967,129.11,129.07,28.66574252]
[1725569601161,9.24260967,129.11,129.08,1.54924157]
[1725569603369,27.745,129.12,129.08,9.29594001]
[1725569605162,27.745,129.12,129.08,7.7467]
[1725569609475,20.0,129.12,129.09,7.7464]
[1725569611169,27.7448,129.12,129.09,7.7464]
[1725569616875,7.7448,129.12,129.09,7.7464]
[1725569617178,7.7443,129.13,129.09,7.7464]
[1725569617373,9.24200967,129.12,129.09,7.7464]
[1725569617580,7.7447,129.12,129.09,7.7464]
[1725569618467,7.7447,129.12,129.08,27.1134]
[1725569618675,9.24280967,129.11,129.08,27.1134]
[1725569618855,7.7455,129.11,129.08,27.1134]
[1725569619265,1.49730967,129.1,129.06,6.588]
[1725569619581,10.3379,129.14,129.06,14.3359]
[1725569619874,85.85880967,129.13,129.05,43.0534]
[1725569620079,7.7468,129.09,129.05,43.0534]
[1725569621163,7.7468,129.09,129.06,1.54952304]
[1725569621559,7.7468,129.09,129.05,43.0534]
[1725569622862,9.24450967,129.08,129.05,35.3047]
[1725569623180,9.24510967,129.07,129.03,14.207]
[1725569623366,7.7478,129.07,129.03,14.207]
[1725569623566,7.7478,129.07,129.04,7.7495]
[1725569625858,7.7478,129.07,129.03,14.2069]
[1725569628470,9.24570967,129.06,129.03,14.2069]
[1725569628668,7.7484,129.06,129.03,14.2069]
[1725569630181,7.7498,129.04,129.0,7.7516]
[1725569630384,1.49730967,129.03,129.0,7.7516]
[1725569630976,1.49730967,129.03,128.98,15.1093]
[1725569631157,7.7521,129.0,128.98,15.1093]
[1725569632066,7.7521,129.0,128.97,6.5905]
[1725569632387,20.87330967,129.03,128.95,22.12214042]
[1725569632388,9.25010967,128.99,128.95,22.12214042]
[1725569632587,7.7528,128.99,128.95,24.1174]
[1725569633161,1.49730967,129.02,128.95,16.3627]
[1725569633377,1.49730967,129.02,128.95,24.1175]
[1725569633378,7.7526,128.99,128.95,24.1175]
[1725569633565,1.49730967,128.98,128.95,24.1175]
[1725569633776,1.49730967,128.98,128.96,7.7542]
[1725569633971,46.49730967,128.99,128.96,7.7542]
[1725569634174,1.49730967,128.98,128.96,7.7542]
[1725569634493,1.49730967,128.99,128.97,7.7536]
[1725569635071,66.49730967,129.0,128.97,7.7536]
[1725569638688,7.7541,128.97,128.94,0.8391705]
[1725569638987,1.49730967,128.96,128.94,0.8391705]
[1725569639194,1.49730967,128.99,128.94,0.8391705]
[1725569639369,7.7532,128.98,128.94,8.5942705]
[1725569639673,21.49730967,128.97,128.94,8.5942705]
[1725569641172,1.49730967,128.97,128.94,8.5942705]
[1725569641370,46.49730967,128.97,128.94,0.8391705]
[1725569641671,7.7548,128.96,128.94,0.8391705]
[1725569641980,46.49730967,128.95,128.94,0.8391705]
[1725569643900,1.49730967,128.95,128.94,0.8391705]
[1725569644084,7.7548,128.96,128.94,0.8391705]
[1725569644276,1.49730967,128.95,128.94,0.8391705]
[1725569644975,9.25220967,128.95,128.94,0.8391705]
[1725569645172,20.0,128.95,128.94,0.8391705]
[1725569649582,7.7544,128.96,128.94,0.8391705]
[1725569649785,1.49730967,128.95,128.94,0.8391705]
[1725569649981,74.25220967,128.95,128.94,0.8391705]
[1725569650188,72.7549,128.95,128.94,0.8391705]
[1725569653199,93.63950967,128.95,128.94,0.8391705]
[1725569654284,7.7579,128.91,128.86,22.2276]
[1725569654482,46.49730967,128.9,128.87,7.7597]
[1725569655179,1.49730967,128.9,128.88,7.759]
[1725569655389,21.49730967,128.91,128.88,7.759]
[1725569656503,20.0,128.91,128.88,7.759]
[1725569657593,21.49730967,128.91,128.88,7.759]
[1725569660381,20.0,128.91,128.88,9.31069527]
[1725569661906,20.0,128.91,128.89,7.7584]
[1725569664103,21.49730967,128.91,128.88,7.7589]
[1725569665395,29.25460967,128.91,128.88,7.7589]
[1725569665603,1.49730967,128.9,128.88,7.7589]
[1725569666508,1.49730967,128.9,128.84,32.60070693]
[1725569666713,7.7598,128.87,128.84,19.4031]
[1725569666919,1.49730967,128.86,128.84,19.4031]
[1725569667607,1.49730967,128.86,128.84,27.1646]
[1725569668087,7.7598,128.87,128.84,27.1646]
[1725569668717,1.49730967,128.86,128.84,27.1646]
[1725569669386,1.49730967,128.86,128.83,29.8848]
[1725569671894,1.49730967,128.86,128.84,7.7614]
[1725569672093,66.49730967,128.87,128.84,7.7614]
[1725569672997,1.49730967,128.86,128.84,7.7614]
[1725569673196,65.0,128.87,128.84,7.7614]
[1725569673497,1.49730967,128.86,128.83,29.8847]
[1725569674020,9.25770967,128.86,128.83,29.8847]
[1725569674315,9.25770967,128.86,128.83,23.4414]
[1725569674710,1.49730967,128.86,128.83,23.4414]
[1725569674921,1.49730967,128.86,128.84,19.4038]
[1725569676498,1.49730967,128.86,128.83,23.4413]
[1725569677118,3.09024694,128.9,128.84,19.35160693]
[1725569677293,1.49730967,128.93,128.88,7.7588]
[1725569677497,10.3379,128.97,128.86,13.19760693]
[1725569677498,1.49730967,128.92,128.86,13.19760693]
[1725569677903,7.7571,128.92,128.88,7.759]
[1725569678197,1.49730967,128.91,128.88,7.759]
[1725569678910,21.49730967,128.91,128.88,7.759]
[1725569679716,45.0,128.9,128.88,7.759]
[1725569679919,46.49730967,128.9,128.88,7.759]
[1725569680123,20.0,128.91,128.88,19.3978]
[1725569680297,21.49730967,128.92,128.89,7.7583]
[1725569681492,21.49730967,128.92,128.9,7.7579]
[1725569682199,21.49730967,128.92,128.9,27.1527]
[1725569682200,1.49730967,128.92,128.9,27.1527]
[1725569682406,21.49730967,128.92,128.9,27.1527]
[1725569684621,21.49730967,128.92,128.9,19.3948]
[1725569684804,29.25400967,128.92,128.88,23.3672]
[1725569684998,45.0,128.91,128.88,23.3672]
[1725569685200,45.0,128.91,128.89,7.7585]
[1725569685201,46.49730967,128.91,128.89,7.7585]
[1725569686203,54.25470967,128.91,128.88,42.764]
[1725569687708,54.25470967,128.91,128.88,27.1554]
[1725569687910,54.25470967,128.91,128.88,19.3965]
[1725569692134,1.49730967,128.91,128.88,19.3965]
[1725569692516,1.49730967,128.95,128.88,19.3965]
[1725569692829,7.7568,128.92,128.89,7.7582]
[1725569693007,21.49730967,128.91,128.89,7.7582]
[1725569694035,20.0,128.91,128.89,7.7582]
[1725569694410,20.0,128.92,128.89,7.7582]
[1725569694613,21.49730967,128.92,128.89,7.7582]
[1725569698444,29.25410967,128.92,128.89,7.7582]
[1725569698635,27.7568,128.92,128.89,7.7582]
[1725569702640,7.7564,128.93,128.89,7.7582]
[1725569702837,7.758,128.9,128.86,58.2015]
[1725569703024,66.49730967,128.92,128.87,5.77471168]
[1725569703025,9.25610967,128.89,128.87,5.77471168]
[1725569703229,29.25610967,128.89,128.86,19.4007]
[1725569703460,9.25610967,128.89,128.86,19.4007]
[1725569703731,65.0,128.88,128.85,5.77517231]
[1725569703938,1.49730967,128.87,128.85,5.77517231]
[1725569704127,1.49730967,128.87,128.84,43.7784]
[1725569704332,1.49730967,128.87,128.85,5.77615477]
[1725569704525,1.49730967,128.87,128.84,43.7784]
[1725569704719,7.761,128.85,128.83,2.73258894]
[1725569704924,1.49730967,128.84,128.82,27.1693]
[1725569705229,7.7605,128.86,128.83,5.7769023]
[1725569705425,20.0,128.85,128.82,27.1693]
[1725569705635,20.0,128.85,128.83,13.53868141]
[1725569705842,20.0,128.85,128.84,5.77668141]
[1725569706444,20.0,128.85,128.83,7.762]
[1725569706751,20.0,128.85,128.84,5.77659371]
[1725569706950,9.25720967,128.87,128.84,5.77659371]
[1725569707251,20.0,128.86,128.83,7.762]
[1725569707445,20.0,128.86,128.84,5.77640858]
[1725569707651,20.0,128.86,128.83,9.31421538]
[1725569707828,20.0,128.86,128.84,5.77640884]
[1725569708030,20.0,128.86,128.83,9.31421538]
[1725569708231,20.0,128.86,128.84,5.77644377]
[1725569708547,20.0,128.86,128.83,9.31421538]
[1725569708765,20.0,128.86,128.84,5.77644509]
[1725569708933,20.0,128.86,128.83,9.31421538]
[1725569709132,20.0,128.86,128.84,13.53784377]
[1725569709443,20.0,128.87,128.85,13.53688156]
[1725569709745,20.0,128.87,128.84,27.1651]
[1725569709949,20.0,128.87,128.85,5.77574078]
[1725569710155,20.0,128.87,128.84,28.71716895]
[1725569710453,20.0,128.87,128.85,5.77570929]
[1725569710630,20.0,128.87,128.84,28.71716895]
[1725569710832,20.0,128.87,128.85,5.77570796]
[1725569711031,20.0,128.87,128.84,28.71716895]
[1725569711257,20.0,128.87,128.85,5.77570929]
[1725569711437,20.0,128.87,128.84,28.71716895]
[1725569711629,20.0,128.87,128.85,5.77570796]
[1725569711825,20.0,128.87,128.84,28.71716895]
[1725569712153,20.0,128.87,128.85,5.77570929]
[1725569712335,7.7611,128.85,128.82,9.72267094]
[1725569712530,7.7611,128.85,128.83,5.77685309]
[1725569712531,7.7615,128.84,128.83,5.77685309]
[1725569713045,27.7615,128.84,128.83,5.77685309]
[1725569713249,27.7615,128.84,128.81,60.48442863]
[1725569713462,27.7615,128.84,128.82,5.77710345]
[1725569713648,27.7615,128.84,128.81,53.49281732]
[1725569713846,27.7615,128.84,128.82,5.77710213]
[1725569714145,27.7615,128.84,128.81,53.49281732]
[1725569714459,20.0,128.84,128.82,5.7771397]
[1725569714646,20.0,128.84,128.83,5.77684634]
[1725569715530,9.25780967,128.86,128.83,5.77684634]
[1725569715727,9.25780967,128.86,128.82,9.31474811]
[1725569715955,20.0,128.85,128.83,5.77673102]
[1725569716152,20.0,128.85,128.83,1.55225945]
[1725569716345,20.0,128.85,128.83,9.31425945]
[1725569717642,20.0,128.85,128.83,7.762]
[1725569717831,7.7598,128.87,128.83,7.762]
[1725569718032,21.49730967,128.86,128.83,7.762]
[1725569718245,46.49730967,128.85,128.82,27.168]
[1725569718555,1.49730967,128.85,128.83,5.77672266]
[1725569718767,9.25820967,128.85,128.82,27.168]
[1725569719057,1.49730967,128.84,128.83,5.77672134]
[1725569720759,7.7626,128.83,128.81,0.8391705]
[1725569721052,9.26000967,128.82,128.81,0.8391705]
[1725569721554,1.49730967,128.82,128.81,0.8391705]
[1725569722051,9.25970967,128.83,128.81,0.8391705]
[1725569723054,1.49730967,128.83,128.81,0.8391705]
[1725569725649,9.25960967,128.83,128.81,0.8391705]
[1725569726936,7.7627,128.82,128.81,0.8391705]
[1725569727157,72.7627,128.82,128.81,0.8391705]
[1725569728336,83.26780967,128.82,128.71,22.4986]
[1725569728660,84.409,128.81,128.72,19.4205]
[1725569728864,7.7664,128.76,128.72,27.1889]
[1725569729043,20.90870967,128.8,128.69,39.6908705]
[1725569729044,7.7688,128.72,128.69,0.8391705]
[1725569729245,9.26670967,128.71,128.69,0.8391705]
[1725569729454,65.0,128.75,128.69,0.8391705]
[1725569729455,7.769,128.72,128.69,0.8391705]
[1725569729662,1.49730967,128.71,128.69,0.8391705]
[1725569730863,7.7682,128.73,128.69,8.6095705]
[1725569731066,21.49730967,128.72,128.69,0.8391705]
[1725569731946,7.77,128.7,128.69,0.8391705]
[1725569732266,74.26730967,128.7,128.69,0.8391705]
[1725569741074,54.26730967,128.7,128.69,0.8391705]
[1725569741558,9.26730967,128.7,128.69,0.8391705]
[1725569741756,7.77,128.7,128.69,0.8391705]
[1725569741962,9.26730967,128.7,128.69,0.8391705]
[1725569742850,74.26730967,128.7,128.69,0.8391705]
[1725569745066,93.69230967,128.7,128.69,0.8391705]
[1725569747282,93.69230967,128.7,128.65,391.2]
[1725569747283,7.7724,128.66,128.65,391.2]
[1725569747584,72.7724,128.66,128.65,391.2]
[1725569748379,7.7735,128.65,128.61,19.4374]
[1725569748679,1.49730967,128.7,128.63,19.4353]
[1725569748882,7.7723,128.67,128.63,27.2092]
[1725569749177,21.49730967,128.66,128.63,27.2092]
[1725569749378,29.26980967,128.66,128.62,7.7745]
[1725569750055,1.49730967,128.65,128.62,7.7745]
[1725569750476,20.0,128.66,128.63,27.2095]
[1725569750679,21.49730967,128.66,128.63,27.2095]
[1725569753102,20.0,128.66,128.63,27.2093]
[1725569753891,20.0,128.66,128.58,7.7768]
[1725569753892,7.7749,128.62,128.58,7.7768]
[1725569754264,1.49730967,128.61,128.58,7.7768]
[1725569754565,1.49730967,128.61,128.57,38.8882]
[1725569754566,21.49730967,128.61,128.57,27.2208]
[1725569754781,46.49730967,128.6,128.57,27.2208]
[1725569755376,20.0,128.61,128.58,7.777]
[1725569755573,29.27280967,128.61,128.58,7.777]
[1725569755889,27.7755,128.61,128.58,7.777]
[1725569756074,27.7755,128.61,128.57,19.4432]
[1725569756075,1.49730967,128.6,128.57,27.2206]
[1725569756782,46.49730967,128.6,128.57,27.2206]
[1725569756980,27.7755,128.61,128.58,7.7771]
[1725569757185,46.49730967,128.6,128.58,7.7771]
[1725569757364,46.49730967,128.6,128.57,27.2208]
[1725569758173,45.0,128.6,128.57,27.2208]
[1725569758397,46.49730967,128.6,128.57,27.2208]
[1725569758583,20.0,128.61,128.58,7.7772]
[1725569758872,1.49730967,128.6,128.58,7.7772]
[1725569759081,20.0,128.61,128.58,7.7772]
[1725569759291,21.49730967,128.61,128.58,7.7772]
[1725569760583,1.49730967,128.6,128.57,27.2207]
[1725569761306,7.7766,128.59,128.56,0.8391705]
[1725569761599,1.49730967,128.58,128.56,0.8391705]
[1725569764099,1.49730967,128.58,128.56,8.6175705]
[1725569765679,1.49730967,128.59,128.56,8.6175705]
[1725569765876,21.49730967,128.59,128.56,8.6175705]